fUSD/lending_fUSD_20250228
["ID","MTS","AMOUNT","RATE_DAILY","PERIOD"]
[354799249,1740707509977,-847.2,0.00056164,120]
[354799250,1740707509988,-500.0,0.00056164,120]
[354799251,1740707509998,-500.0,0.00056164,120]
[354799252,1740707510007,-500.0,0.00056164,120]
[354799253,1740707510017,-927.57,0.00056164,120]
[354799254,1740707510027,-500.0,0.00056164,120]
[354799255,1740707510037,-644.88577864,0.00056164,120]
[354799256,1740707510046,-500.0,0.00056164,120]
[354799257,1740707510056,-500.0,0.00056164,120]
[354799258,1740707510067,-1273.87,0.00056164,120]
[354799259,1740707510077,-500.0,0.00056164,120]
[354799260,1740707510086,-500.0,0.00056164,120]
[354799261,1740707510096,-762.62,0.00056164,120]
[354799262,1740707510106,-500.0,0.00056164,120]
[354799263,1740707510116,-188.8163628,0.00056164,120]
[354799264,1740707510126,-840.01,0.00056164,120]
[354799265,1740707510136,-528.34870897,0.00056164,120]
[354799266,1740707510145,-500.0,0.00056164,120]
[354799267,1740707510155,-500.0,0.00056164,120]
[354799268,1740707510165,-500.0,0.00056164,120]
[354799269,1740707510175,-500.0,0.00056164,120]
[354799270,1740707510184,-795.43,0.00056164,120]
[354799271,1740707510194,-500.0,0.00056164,120]
[354799272,1740707510203,-500.0,0.00056164,120]
[354799273,1740707510213,-500.0,0.00056164,120]
[354799274,1740707510223,-575.37,0.00056164,120]
[354799275,1740707510232,-500.0,0.00056164,120]
[354799276,1740707510242,-500.0,0.00056164,120]
[354799277,1740707510251,-500.0,0.00056164,120]
[354799278,1740707510261,-551.57872706,0.00056164,120]
[354799279,1740707510273,-500.0,0.00056164,120]
[354799280,1740707510282,-695.08,0.00056164,120]
[354799281,1740707510292,-500.0,0.00056164,120]
[354799282,1740707510301,-282.22440204,0.00056164,120]
[354799283,1740707510312,-500.0,0.00056164,120]
[354799284,1740707510321,-500.0,0.00056164,120]
[354799285,1740707510331,-1111.02,0.00056164,120]
[354799286,1740707510341,-500.0,0.00056164,120]
[354799287,1740707510350,-500.0,0.00056164,120]
[354799288,1740707510360,-500.0,0.00056164,120]
[354799289,1740707510370,-919.96,0.00056164,120]
[354799290,1740707510380,-500.0,0.00056164,120]
[354799291,1740707510390,-500.0,0.00056164,120]
[354799292,1740707510400,-500.0,0.00056164,120]
[354799293,1740707510410,-612.37,0.00056164,120]
[354799294,1740707510420,-500.0,0.00056164,120]
[354799295,1740707510429,-639.59,0.00056164,120]
[354799296,1740707510439,-500.0,0.00056164,40]
[354799297,1740707510448,-500.0,0.00056164,120]
[354799298,1740707510458,-2029.62,0.00056164,120]
[354799299,1740707510468,-500.0,0.00056164,120]
[354799300,1740707510478,-500.0,0.00056164,120]
[354799301,1740707510487,-500.0,0.00056164,120]
[354799302,1740707510497,-500.0,0.00056164,120]
[354799303,1740707510510,-790.67,0.00056164,120]
[354799304,1740707510522,-1308.82,0.00056164,120]
[354799305,1740707510531,-500.0,0.00056164,120]
[354799306,1740707510541,-551.57,0.00056164,120]
[354799307,1740707510551,-500.0,0.00056164,7]
[354799308,1740707510561,-714.61,0.00056164,120]
[354799309,1740707510571,-745.48,0.00056164,120]
[354799310,1740707510581,-646.72,0.00056164,120]
[354799311,1740707510591,-500.0,0.00056164,120]
[354799312,1740707510600,-500.0,0.00056164,120]
[354799313,1740707510610,-500.0,0.00056164,120]
[354799314,1740707510620,-500.0,0.00056164,120]
[354799315,1740707510629,-500.0,0.00056164,120]
[354799316,1740707510639,-1169.82,0.00056164,120]
[354799317,1740707510650,-1510.89,0.00056164,120]
[354799318,1740707510660,-500.0,0.00056164,120]
[354799319,1740707510670,-500.0,0.00056164,120]
[354799320,1740707510680,-500.0,0.00056164,120]
[354799321,1740707510690,-2056.21,0.00056164,120]
[354799322,1740707510699,-500.0,0.00056164,120]
[354799323,1740707510708,-500.0,0.00056164,120]
[354799324,1740707510718,-500.0,0.00056164,120]
[354799325,1740707510727,-1119.09,0.00056164,120]
[354799326,1740707510737,-519.8726706,0.00056164,120]
[354799327,1740707510746,-500.0,0.00056164,120]
[354799328,1740707510755,-533.69456229,0.00056164,120]
[354799329,1740707510766,-532.93,0.00056164,120]
[354799330,1740707510776,-500.0,0.00056164,120]
[354799331,1740707510786,-500.0,0.00056164,120]
[354799332,1740707510795,-500.0,0.00056164,120]
[354799333,1740707510804,-729.17,0.00056164,120]
[354799334,1740707510814,-500.0,0.00056164,120]
[354799335,1740707510823,-586.56,0.00056164,120]
[354799336,1740707510832,-845.3,0.00056164,120]
[354799337,1740707510841,-500.0,0.00056164,120]
[354799338,1740707510851,-886.83,0.00056164,120]
[354799339,1740707510860,-500.0,0.00056164,120]
[354799340,1740707510869,-650.9,0.00056164,120]
[354799341,1740707510879,-500.0,0.00056164,120]
[354799342,1740707510888,-971.67,0.00056164,120]
[354799343,1740707510898,-500.0,0.00056164,120]
[354799344,1740707510907,-511.14,0.00056164,120]
[354799345,1740707510916,-500.0,0.00056164,120]
[354799346,1740707510925,-500.0,0.00056164,120]
[354799347,1740707510934,-704.59,0.00056164,120]
[354799348,1740707510943,-2271.13,0.00056164,120]
[354799349,1740707510952,-500.0,0.00056164,120]
[354799350,1740707510962,-400.0,0.0005617,30]
[354799351,1740707510971,-700.0,0.0005617,30]
[354799352,1740707510980,-2000.0,0.00056199,120]
[354799353,1740707510989,-158.45,0.00056219,120]
[354799354,1740707510997,-1412.46,0.00056315,120]
[354799355,1740707511006,-1412.46,0.00056315,120]
[354799356,1740707511017,-1300.0,0.00056328,120]
[354799357,1740707511026,-1400.0,0.00056328,120]
[354799358,1740707511034,-151.0,0.00056329,120]
[354799359,1740707511044,-616.35,0.0005636,2]
[354799360,1740707511053,-500.0,0.00056438,120]
[354799361,1740707511062,-500.0,0.00056438,120]
[354799362,1740707511071,-154.618068,0.00056438,120]
[354799363,1740707511080,-4105.716146,0.00056438,120]
[354799364,1740707511090,-1424.950955,0.00056438,120]
[354799365,1740707511098,-159.164146,0.00056438,120]
[354799366,1740707511107,-500.0,0.00056438,120]
[354799367,1740707511117,-500.0,0.00056438,120]
[354799368,1740707511127,-500.0,0.00056438,120]
[354799369,1740707511136,-500.0,0.00056438,120]
[354799370,1740707511146,-521.34456589,0.00056438,120]
[354799371,1740707511155,-500.0,0.00056438,120]
[354799372,1740707511164,-288.32976489,0.00056438,120]
[354799373,1740707511173,-161.51194089,0.00056438,120]
[354799374,1740707511182,-500.0,0.00056438,120]
[354799375,1740707511191,-500.0,0.00056438,120]
[354799376,1740707511201,-500.0,0.00056438,120]
[354799377,1740707511210,-500.0,0.00056438,120]
[354799378,1740707511219,-500.0,0.00056438,120]
[354799379,1740707511228,-500.0,0.00056438,120]
[354799380,1740707511237,-500.0,0.00056438,120]
[354799381,1740707511246,-500.0,0.00056438,120]
[354799382,1740707511255,-500.0,0.00056438,120]
[354799383,1740707511264,-500.0,0.00056438,120]
[354799384,1740707511276,-500.0,0.00056438,120]
[354799385,1740707511285,-500.0,0.00056438,120]
[354799386,1740707511293,-523.40016134,0.00056438,120]
[354799387,1740707511303,-500.0,0.00056438,120]
[354799388,1740707511312,-500.0,0.00056438,120]
[354799389,1740707511321,-500.0,0.00056438,120]
[354799390,1740707511330,-343.26120378,0.00056438,120]
[354799391,1740707511342,-500.0,0.00056438,120]
[354799392,1740707511351,-500.0,0.00056438,120]
[354799393,1740707511360,-500.0,0.00056438,120]
[354799394,1740707511370,-500.0,0.00056438,120]
[354799395,1740707511379,-422.71301044,0.00056438,120]
[354799396,1740707511389,-520.27403201,0.00056438,120]
[354799397,1740707511398,-500.0,0.00056438,120]
[354799398,1740707511407,-500.0,0.00056438,120]
[354799399,1740707511417,-500.0,0.00056438,120]
[354799400,1740707511426,-500.0,0.00056438,120]
[354799401,1740707511435,-500.0,0.00056438,120]
[354799402,1740707511444,-500.0,0.00056438,120]
[354799403,1740707511454,-294.90398129,0.00056438,120]
[354799404,1740707511463,-500.0,0.00056438,120]
[354799405,1740707511472,-500.0,0.00056438,120]
[354799406,1740707511481,-500.0,0.00056438,120]
[354799407,1740707511490,-500.0,0.00056438,120]
[354799408,1740707511499,-500.0,0.00056438,120]
[354799409,1740707511510,-500.0,0.00056438,60]
[354799410,1740707511520,-515.87298651,0.00056438,120]
[354799411,1740707511530,-521.89864063,0.00056438,120]
[354799412,1740707511539,-3000.0,0.00056438,120]
[354799413,1740707511549,-500.0,0.00056438,120]
[354799414,1740707511558,-500.0,0.00056438,120]
[354799415,1740707511567,-500.0,0.00056438,120]
[354799416,1740707511576,-500.0,0.00056438,120]
[354799417,1740707511585,-500.0,0.00056438,120]
[354799418,1740707511596,-500.0,0.00056438,120]
[354799419,1740707511606,-500.0,0.00056438,120]
[354799420,1740707511615,-500.0,0.00056438,120]
[354799421,1740707511624,-500.0,0.00056438,120]
[354799422,1740707511633,-500.0,0.00056438,120]
[354799423,1740707511643,-500.0,0.00056438,120]
[354799424,1740707511652,-500.0,0.00056438,120]
[354799425,1740707511661,-500.0,0.00056438,120]
[354799426,1740707511670,-524.70932054,0.00056438,120]
[354799427,1740707511680,-500.0,0.00056438,120]
[354799428,1740707511689,-570.68,0.00056438,120]
[354799429,1740707511698,-500.0,0.00056438,120]
[354799430,1740707511707,-500.0,0.00056438,120]
[354799431,1740707511716,-500.0,0.00056438,120]
[354799432,1740707511725,-500.0,0.00056438,120]
[354799433,1740707511735,-500.0,0.00056438,120]
[354799434,1740707511744,-500.0,0.00056438,120]
[354799435,1740707511753,-500.0,0.00056438,120]
[354799436,1740707511762,-500.0,0.00056438,120]
[354799437,1740707511774,-601.76650168,0.00056438,120]
[354799438,1740707511784,-509.69,0.00056438,120]
[354799439,1740707511794,-500.0,0.00056438,120]
[354799440,1740707511803,-524.17132533,0.00056438,120]
[354799441,1740707511812,-500.0,0.00056438,120]
[354799442,1740707511821,-500.0,0.00056438,120]
[354799443,1740707511830,-828.19,0.00056438,120]
[354799444,1740707511840,-500.0,0.00056438,120]
[354799445,1740707511849,-500.0,0.00056438,120]
[354799446,1740707511858,-518.45032008,0.00056438,120]
[354799447,1740707511868,-500.0,0.00056438,120]
[354799448,1740707511877,-500.0,0.00056438,120]
[354799449,1740707511887,-500.0,0.00056438,120]
[354799450,1740707511896,-500.0,0.00056438,120]
[354799451,1740707511905,-500.0,0.00056438,120]
[354799452,1740707511915,-500.0,0.00056438,120]
[354799453,1740707511924,-500.0,0.00056438,120]
[354799454,1740707511933,-500.0,0.00056438,120]
[354799455,1740707511943,-500.0,0.00056438,120]
[354799456,1740707511952,-1852.03,0.00056438,120]
[354799457,1740707511962,-500.0,0.00056438,120]
[354799458,1740707511971,-500.0,0.00056438,120]
[354799459,1740707511987,-500.0,0.00056438,120]
[354799460,1740707511996,-500.0,0.00056438,120]
[354799461,1740707512006,-500.0,0.00056438,120]
[354799462,1740707512016,-500.0,0.00056438,120]
[354799463,1740707512025,-514.69,0.00056438,120]
[354799464,1740707512035,-500.0,0.00056438,120]
[354799465,1740707512045,-500.0,0.00056438,120]
[354799466,1740707512055,-500.0,0.00056438,120]
[354799467,1740707512064,-500.0,0.00056438,120]
[354799468,1740707512073,-500.0,0.00056438,120]
[354799469,1740707512083,-500.0,0.00056438,120]
[354799470,1740707512094,-500.0,0.00056438,120]
[354799471,1740707512104,-500.0,0.00056438,120]
[354799472,1740707512113,-500.0,0.00056438,120]
[354799473,1740707512123,-500.0,0.00056438,120]
[354799474,1740707512132,-500.0,0.00056438,120]
[354799475,1740707512141,-500.0,0.00056438,120]
[354799476,1740707512151,-500.0,0.00056438,120]
[354799477,1740707512160,-500.0,0.00056438,120]
[354799478,1740707512169,-500.0,0.00056438,120]
[354799479,1740707512179,-500.0,0.00056438,120]
[354799480,1740707512188,-500.0,0.00056438,120]
[354799481,1740707512198,-500.0,0.00056438,120]
[354799482,1740707512207,-500.0,0.00056438,120]
[354799483,1740707512218,-500.0,0.00056438,120]
[354799484,1740707512228,-500.0,0.00056438,120]
[354799485,1740707512237,-511.56,0.00056438,120]
[354799486,1740707512247,-625.03595126,0.00056438,120]
[354799487,1740707512256,-500.0,0.00056438,120]
[354799488,1740707512267,-500.0,0.00056438,120]
[354799489,1740707512277,-500.0,0.00056438,120]
[354799490,1740707512286,-500.0,0.00056438,120]
[354799491,1740707512296,-500.0,0.00056438,120]
[354799492,1740707512305,-500.0,0.00056438,2]
[354799493,1740707512315,-500.0,0.00056438,120]
[354799494,1740707512325,-500.0,0.00056438,120]
[354799495,1740707512334,-500.0,0.00056438,120]
[354799496,1740707512344,-500.0,0.00056438,120]
[354799497,1740707512354,-500.0,0.00056438,120]
[354799498,1740707512363,-500.0,0.00056438,120]
[354799499,1740707512372,-500.0,0.00056438,120]
[354799500,1740707512381,-500.0,0.00056438,120]
[354799501,1740707512391,-500.0,0.00056438,120]
[354799502,1740707512400,-500.0,0.00056438,120]
[354799503,1740707512409,-500.0,0.00056438,120]
[354799504,1740707512419,-500.0,0.00056438,120]
[354799505,1740707512429,-426.49185477,0.00056438,120]
[354799506,1740707512439,-500.0,0.00056438,120]
[354799507,1740707512451,-500.0,0.00056438,120]
[354799508,1740707512461,-519.06157802,0.00056438,120]
[354799509,1740707512470,-500.0,0.00056438,120]
[354799510,1740707512479,-500.0,0.00056438,120]
[354799511,1740707512489,-500.0,0.00056438,120]
[354799512,1740707512499,-500.0,0.00056438,120]
[354799513,1740707512514,-500.0,0.00056438,120]
[354799514,1740707512524,-500.0,0.00056438,120]
[354799515,1740707512534,-334.36881135,0.00056438,120]
[354799516,1740707512544,-500.0,0.00056438,120]
[354799517,1740707512553,-500.0,0.00056438,30]
[354799518,1740707512563,-500.0,0.00056438,120]
[354799519,1740707512572,-500.0,0.00056438,120]
[354799520,1740707512581,-500.0,0.00056438,120]
[354799521,1740707512591,-500.0,0.00056438,120]
[354799522,1740707512600,-500.0,0.00056438,120]
[354799523,1740707512609,-500.0,0.00056438,120]
[354799524,1740707512619,-500.0,0.00056438,120]
[354799525,1740707512628,-500.0,0.00056438,120]
[354799526,1740707512795,-495.706997,0.00056438,120]
[354799527,1740707512805,-500.0,0.00056438,120]
[354799528,1740707512815,-500.0,0.00056438,120]
[354799529,1740707512824,-530.14726874,0.00056438,120]
[354799530,1740707512834,-500.0,0.00056438,120]
[354799531,1740707512843,-500.0,0.00056438,120]
[354799532,1740707512852,-500.0,0.00056438,120]
[354799533,1740707512862,-500.0,0.00056438,120]
[354799534,1740707512872,-500.0,0.00056438,120]
[354799535,1740707512883,-633.77335977,0.00056438,120]
[354799536,1740707512892,-500.0,0.00056438,120]
[354799537,1740707512903,-500.0,0.00056438,120]
[354799538,1740707512913,-626.37259856,0.00056438,120]
[354799539,1740707512923,-500.0,0.00056438,120]
[354799540,1740707512934,-500.0,0.00056438,120]
[354799541,1740707512942,-500.0,0.00056438,120]
[354799542,1740707512952,-500.0,0.00056438,120]
[354799543,1740707512961,-187.33910497,0.00056438,120]
[354799544,1740707512971,-500.0,0.00056438,120]
[354799545,1740707512980,-500.0,0.00056438,120]
[354799546,1740707512989,-551.51,0.00056438,120]
[354799547,1740707512999,-500.0,0.00056438,120]
[354799548,1740707513008,-500.0,0.00056438,120]
[354799549,1740707513018,-500.0,0.00056438,120]
[354799550,1740707513027,-1099.38,0.00056438,120]
[354799551,1740707513037,-500.0,0.00056438,120]
[354799552,1740707513047,-567.78239174,0.00056438,120]
[354799553,1740707513056,-500.0,0.00056438,120]
[354799554,1740707513066,-500.0,0.00056438,120]
[354799555,1740707513076,-500.0,0.00056438,120]
[354799556,1740707513086,-383.56893491,0.00056438,7]
[354799557,1740707513095,-500.0,0.00056438,120]
[354799558,1740707513111,-500.0,0.00056438,120]
[354799559,1740707513120,-500.0,0.00056438,120]
[354799560,1740707513130,-528.71044294,0.00056438,120]
[354799561,1740707513139,-500.0,0.00056438,120]
[354799562,1740707513149,-500.0,0.00056438,120]
[354799563,1740707513159,-500.0,0.00056438,120]
[354799564,1740707513168,-500.0,0.00056438,120]
[354799565,1740707513178,-500.0,0.00056438,120]
[354799566,1740707513187,-646.53385917,0.00056438,120]
[354799567,1740707513196,-500.0,0.00056438,120]
[354799568,1740707513205,-500.0,0.00056438,120]
[354799569,1740707513214,-500.0,0.00056438,120]
[354799570,1740707513224,-500.0,0.00056438,120]
[354799571,1740707513234,-500.0,0.00056438,120]
[354799572,1740707513243,-500.0,0.00056438,120]
[354799573,1740707513252,-500.0,0.00056438,120]
[354799574,1740707513262,-1641.04,0.00056438,120]
[354799575,1740707513273,-500.0,0.00056438,120]
[354799576,1740707513283,-500.0,0.00056438,120]
[354799577,1740707513293,-759.23,0.00056438,120]
[354799578,1740707513303,-488.26358156,0.00056438,120]
[354799579,1740707513312,-500.0,0.00056438,120]
[354799580,1740707513322,-500.0,0.00056438,120]
[354799581,1740707513332,-500.0,0.00056438,120]
[354799582,1740707513341,-500.0,0.00056438,120]
[354799583,1740707513351,-500.0,0.00056438,120]
[354799584,1740707513360,-585.19,0.00056438,120]
[354799585,1740707513372,-500.0,0.00056438,120]
[354799586,1740707513383,-225.53895674,0.00056438,120]
[354799587,1740707513392,-509.82,0.00056438,120]
[354799588,1740707513402,-355.13987268,0.00056438,120]
[354799589,1740707513412,-500.0,0.00056438,20]
[354799590,1740707513422,-500.0,0.00056438,120]
[354799591,1740707513431,-500.0,0.00056438,120]
[354799592,1740707513441,-500.0,0.00056438,120]
[354799593,1740707513451,-500.0,0.00056438,120]
[354799594,1740707513460,-500.0,0.00056438,120]
[354799595,1740707513470,-500.0,0.00056438,120]
[354799596,1740707513479,-306.6433476,0.00056438,120]
[354799597,1740707513489,-578.23,0.00056438,120]
[354799598,1740707513500,-530.22,0.00056438,120]
[354799599,1740707513511,-509.64,0.00056438,120]
[354799600,1740707513523,-300.0,0.00056438,120]
[354799601,1740707513531,-500.0,0.00056438,120]
[354799602,1740707513540,-500.0,0.00056438,120]
[354799603,1740707513552,-500.0,0.00056438,120]
[354799604,1740707513564,-500.0,0.00056438,120]
[354799605,1740707513574,-500.0,0.00056438,120]
[354799606,1740707513583,-500.0,0.00056438,120]
[354799607,1740707513596,-587.4,0.00056438,120]
[354799608,1740707513606,-641.95173181,0.00056438,120]
[354799609,1740707513615,-500.0,0.00056438,120]
[354799610,1740707513625,-500.0,0.00056438,120]
[354799611,1740707513635,-500.0,0.00056438,120]
[354799612,1740707513644,-459.55376105,0.00056438,120]
[354799613,1740707513653,-500.0,0.00056438,120]
[354799614,1740707513663,-500.0,0.00056438,120]
[354799615,1740707513671,-500.0,0.00056438,120]
[354799616,1740707513682,-500.0,0.00056438,120]
[354799617,1740707513691,-500.0,0.00056438,120]
[354799618,1740707513700,-500.0,0.00056438,120]
[354799619,1740707513710,-500.0,0.00056438,120]
[354799620,1740707513719,-500.0,0.00056438,120]
[354799621,1740707513729,-500.0,0.00056438,120]
[354799622,1740707513738,-500.0,0.00056438,120]
[354799623,1740707513748,-500.0,0.00056438,120]
[354799624,1740707513757,-500.0,0.00056438,120]
[354799625,1740707513767,-500.0,0.00056438,120]
[354799626,1740707513776,-500.0,0.00056438,120]
[354799627,1740707513787,-500.0,0.00056438,120]
[354799628,1740707513798,-500.0,0.00056438,120]
[354799629,1740707513807,-500.0,0.00056438,120]
[354799630,1740707513816,-600.42,0.00056438,120]
[354799631,1740707513825,-525.57273111,0.00056438,120]
[354799632,1740707513835,-500.0,0.00056438,120]
[354799633,1740707513844,-536.23899163,0.00056438,120]
[354799634,1740707513854,-500.0,0.00056438,120]
[354799635,1740707513863,-500.0,0.00056438,120]
[354799636,1740707513872,-599.12578418,0.00056438,120]
[354799637,1740707513881,-500.0,0.00056438,120]
[354799638,1740707513890,-518.17713147,0.00056438,120]
[354799639,1740707513899,-500.0,0.00056438,120]
[354799640,1740707513908,-500.0,0.00056438,120]
[354799641,1740707513918,-500.0,0.00056438,120]
[354799642,1740707513927,-500.0,0.00056438,120]
[354799643,1740707513936,-951.38,0.00056438,2]
[354799644,1740707513945,-630.94,0.00056438,120]
[354799645,1740707513954,-500.0,0.00056438,120]
[354799646,1740707513963,-500.0,0.00056438,120]
[354799647,1740707513973,-1478.07,0.00056438,120]
[354799648,1740707513982,-594.92,0.00056438,120]
[354799649,1740707513991,-500.0,0.00056438,120]
[354799650,1740707514000,-768.84,0.00056438,120]
[354799651,1740707514009,-154.90493022,0.00056438,120]
[354799652,1740707514019,-500.0,0.00056438,120]
[354799653,1740707514028,-500.0,0.00056438,120]
[354799654,1740707514037,-500.0,0.00056438,120]
[354799655,1740707514047,-536.99098918,0.00056438,120]
[354799656,1740707514058,-500.0,0.00056438,120]
[354799657,1740707514067,-1119.62,0.00056438,120]
[354799658,1740707514076,-538.09198701,0.00056438,120]
[354799659,1740707514084,-580.73,0.00056438,120]
[354799660,1740707514094,-517.91,0.00056438,120]
[354799661,1740707514103,-500.0,0.00056438,120]
[354799662,1740707514112,-500.0,0.00056438,120]
[354799663,1740707514121,-500.0,0.00056438,120]
[354799664,1740707514131,-1543.06,0.00056438,120]
[354799665,1740707514140,-500.0,0.00056438,120]
[354799666,1740707514150,-590.5702644,0.00056438,120]
[354799667,1740707514159,-500.0,0.00056438,120]
[354799668,1740707514168,-533.37,0.00056438,120]
[354799669,1740707514177,-500.0,0.00056438,120]
[354799670,1740707514187,-500.0,0.00056438,120]
[354799671,1740707514196,-500.0,0.00056438,120]
[354799672,1740707514207,-500.0,0.00056438,120]
[354799673,1740707514216,-1220.35,0.00056438,120]
[354799674,1740707514226,-744.65,0.00056438,120]
[354799675,1740707514235,-500.0,0.00056438,120]
[354799676,1740707514244,-500.0,0.00056438,120]
[354799677,1740707514254,-1028.04,0.00056438,120]
[354799678,1740707514264,-500.0,0.00056438,120]
[354799679,1740707514275,-500.0,0.00056438,120]
[354799680,1740707514284,-500.0,0.00056438,120]
[354799681,1740707514293,-500.0,0.00056438,120]
[354799682,1740707514303,-500.0,0.00056438,30]
[354799683,1740707514313,-238.96648609,0.00056438,120]
[354799684,1740707514322,-1097.3,0.00056438,120]
[354799685,1740707514331,-500.0,0.00056438,120]
[354799686,1740707514341,-500.0,0.00056438,120]
[354799687,1740707514351,-949.11,0.00056438,120]
[354799688,1740707514360,-879.55,0.00056438,120]
[354799689,1740707514369,-500.0,0.00056438,120]
[354799690,1740707514379,-526.49,0.00056438,120]
[354799691,1740707514388,-500.0,0.00056438,120]
[354799692,1740707514397,-828.91,0.00056438,120]
[354799693,1740707514407,-595.90204215,0.00056438,120]
[354799694,1740707514416,-500.0,0.00056438,120]
[354799695,1740707514425,-814.83,0.00056438,120]
[354799696,1740707514434,-517.4,0.00056438,120]
[354799697,1740707514443,-852.06,0.00056438,120]
[354799698,1740707514452,-500.0,0.00056438,120]
[354799699,1740707514462,-500.0,0.00056438,120]
[354799700,1740707514471,-1009.91,0.00056438,120]
[354799701,1740707514480,-730.96,0.00056438,120]
[354799702,1740707514489,-500.0,0.00056438,120]
[354799703,1740707514498,-500.0,0.00056438,120]
[354799704,1740707514508,-1151.75,0.00056438,120]
[354799705,1740707514523,-175.27252971,0.00056438,120]
[354799706,1740707514532,-500.0,0.00056438,120]
[354799707,1740707514541,-500.0,0.00056438,120]
[354799708,1740707514552,-500.0,0.00056438,120]
[354799709,1740707514562,-500.0,0.00056438,120]
[354799710,1740707514572,-500.0,0.00056438,120]
[354799711,1740707514582,-500.0,0.00056438,120]
[354799712,1740707514592,-893.14,0.00056438,120]
[354799713,1740707514602,-885.88,0.00056438,120]
[354799714,1740707514611,-500.0,0.00056438,120]
[354799715,1740707514620,-500.0,0.00056438,120]
[354799716,1740707514629,-566.69,0.00056438,120]
[354799717,1740707514639,-504.0,0.00056438,120]
[354799718,1740707514647,-500.0,0.00056438,120]
[354799719,1740707514657,-710.67,0.00056438,120]
[354799720,1740707514666,-512.68871199,0.00056438,120]
[354799721,1740707514676,-197.4891716,0.00056438,120]
[354799722,1740707514686,-726.03,0.00056438,120]
[354799723,1740707514695,-1292.45,0.00056438,100]
[354799724,1740707514705,-500.0,0.00056438,120]
[354799725,1740707514714,-500.0,0.00056438,120]
[354799726,1740707514723,-500.0,0.00056438,120]
[354799727,1740707514733,-715.56,0.00056438,120]
[354799728,1740707514742,-500.0,0.00056438,120]
[354799729,1740707514751,-500.0,0.00056438,120]
[354799730,1740707514760,-500.0,0.00056438,120]
[354799731,1740707514771,-196.97946716,0.00056438,120]
[354799732,1740707514780,-500.0,0.00056438,120]
[354799733,1740707514789,-500.0,0.00056438,120]
[354799734,1740707514798,-500.0,0.00056438,120]
[354799735,1740707514807,-516.93,0.00056438,120]
[354799736,1740707514816,-500.0,0.00056438,120]
[354799737,1740707514825,-458.26892349,0.00056438,120]
[354799738,1740707514834,-951.24,0.00056438,120]
[354799739,1740707514843,-741.74,0.00056438,120]
[354799740,1740707514852,-2076.3,0.00056438,120]
[354799741,1740707514861,-500.0,0.00056438,120]
[354799742,1740707514871,-628.38522819,0.00056438,120]
[354799743,1740707514880,-500.0,0.00056438,120]
[354799744,1740707514889,-500.0,0.00056438,120]
[354799745,1740707514899,-484.87289161,0.00056438,120]
[354799746,1740707514909,-500.0,0.00056438,120]
[354799747,1740707514918,-608.51,0.00056438,120]
[354799748,1740707514927,-500.0,0.00056438,120]